fUSD/lending_fUSD_20251105
["ID","MTS","AMOUNT","RATE_DAILY","PERIOD"]
[393241776,1762372245469,-666.0,0.00017999,2]
[393241778,1762372245478,-500.0,0.00017999,2]
[393241780,1762372245488,-500.0,0.00017999,2]
[393241782,1762372245498,-500.0,0.00017999,2]
[393241784,1762372245507,-500.0,0.00017999,2]
[393241786,1762372245515,-500.0,0.00017999,2]
[393241788,1762372245524,-231.02086275,0.00017999,2]
[393241790,1762372245534,-300.0,0.00017999,2]
[393241792,1762372245543,-666.0,0.00017999,2]
[393241794,1762372245553,-1436474.78564393,0.00018,2]
[393241799,1762372245595,-970.15916537,0.00018,2]
[393241834,1762372245909,-549.09,0.00017942,2]
[393241836,1762372245918,-594638.04711881,0.00018,2]
[393241860,1762372246126,-52040.00000001,0.00018,2]
[393241908,1762372246636,-5739.8,0.00018,2]
[393243619,1762372441547,150.0,0.00016746,120]
[393243620,1762372585913,514.25,0.00013699,2]
[393243622,1762372625297,-306.65475357,0.000162,2]
[393243623,1762372627391,-267.08309845,0.000162,2]
[393243624,1762372629465,-214.12191314,0.000162,2]
[393243625,1762372632209,-306.59855743,0.000162,2]
[393243626,1762372634360,-228.23215969,0.000162,2]
[393243627,1762372638129,-596.83714212,0.000162,2]
[393243628,1762372640195,-245.19988057,0.000162,2]
[393243629,1762372641840,-180.66646979,0.000162,2]
[393243630,1762372646153,-154.60602524,0.000162,2]
[393243631,1762372646179,-118.11403974,0.00016204,2]
[393243632,1762372648987,-131.88596026,0.00016204,2]
[393243633,1762372649008,-57.28944984,0.00016209,2]
[393243634,1762372652278,-163.01396919,0.00016209,2]
[393243635,1762372652300,-40.26824202,0.00016209,2]
[393243636,1762372653884,-116.64567756,0.00016209,2]
[393243637,1762372653907,-295.32911439,0.00016209,2]
[393243638,1762372656616,3010.571661,0.00016128,2]
[393243639,1762372673500,411.974792,0.00016128,2]
[393243643,1762373045367,6063.213547,0.00015709,2]
[393243644,1762373045389,7286.396453,0.00015709,2]
[393243645,1762373055460,250.0,0.00015585,2]
[393243647,1762373107542,178.41,0.00012496,2]
[393243648,1762373135308,200.0,0.0001562,2]
[393243649,1762373334880,638.877445,0.00016119,2]
[393243652,1762373425954,1446.326102,0.00015515,2]
[393243653,1762373425977,1304.673898,0.00015515,2]
[393243654,1762373426701,-2500.0,0.000162,2]
[393243655,1762373426730,-250.0,0.000162,2]
[393243656,1762373426757,-300.0,0.000162,2]
[393243657,1762373426785,-195.0,0.000162,2]
[393243658,1762373426813,-931.39310181,0.00016201,2]
[393243659,1762373426995,-1647.22379638,0.00016201,2]
[393243660,1762373427024,-264.66691542,0.00016221,2]
[393243661,1762373427053,-195.0,0.00016221,2]
[393243662,1762373427084,-1200.0,0.00016251,2]
[393243663,1762373427111,-201.0,0.00016252,2]
[393243664,1762373427139,-300.0,0.00016252,2]
[393243665,1762373427353,-300.0,0.00016252,2]
[393243666,1762373427386,-584.2285764,0.00016253,2]
[393243667,1762373427550,-615.7714236,0.00016253,2]
[393243668,1762373427578,-156.91391956,0.00016254,2]
[393243669,1762373427608,-533.20404925,0.00016254,2]
[393243670,1762373427636,-1846.49743279,0.00016254,2]
[393243671,1762373427663,-500.0,0.00016273,2]
[393243672,1762373427692,-500.0,0.00016273,2]
[393243673,1762373427719,-550.0,0.00016289,2]
[393243674,1762373427745,-161.74166162,0.00016289,2]
[393243675,1762373427830,-316.7,0.0001629,2]
[393243676,1762373427857,-150.99,0.0001629,2]
[393243677,1762373429679,-0.02,0.0001629,2]
[393243678,1762373429875,-0.04,0.0001629,2]
[393243684,1762373432046,-9999.93,0.0001629,2]
[393243685,1762373432056,-9999.99,0.0001629,2]
[393243686,1762373432066,-26592.71319702,0.0001629,2]
[393243687,1762373432089,-296.2334936,0.0001629,2]
[393243688,1762373432712,-4385.30330938,0.0001629,2]
[393243689,1762373432742,-151.0,0.0001629,2]
[393243690,1762373432772,-151.0,0.0001629,2]
[393243691,1762373432802,-151.0,0.0001629,2]
[393243692,1762373432834,-151.0,0.0001629,2]
[393243693,1762373432985,-151.0,0.0001629,2]
[393243694,1762373433016,-151.0,0.0001629,2]
[393243695,1762373433052,-151.0,0.0001629,2]
[393243696,1762373433083,-151.0,0.0001629,2]
[393243697,1762373433114,-151.0,0.0001629,2]
[393243698,1762373433144,-151.0,0.0001629,2]
[393243699,1762373433174,-151.0,0.0001629,2]
[393243700,1762373433204,-151.0,0.0001629,2]
[393243701,1762373433233,-151.0,0.0001629,2]
[393243702,1762373433268,-151.0,0.0001629,2]
[393243703,1762373433298,-151.0,0.0001629,2]
[393243704,1762373433327,-151.0,0.0001629,2]
[393243705,1762373433357,-151.0,0.0001629,2]
[393243706,1762373433386,-151.0,0.0001629,2]
[393243707,1762373433415,-151.0,0.0001629,2]
[393243708,1762373433444,-151.0,0.0001629,2]
[393243709,1762373436556,2500.0,0.000162,2]
[393243712,1762373437326,-266.98639044,0.00016299,2]
[393243713,1762373437381,-315.78535876,0.00016299,2]
[393243714,1762373437390,-111.88605086,0.00016299,2]
[393243735,1762373439494,-388.11394914,0.00016299,2]
[393243736,1762373439505,-171.07250613,0.00016299,2]
[393243737,1762373439514,-1000.0,0.000163,2]
[393243738,1762373439525,-14333.8635,0.000163,2]
[393243739,1762373439534,-420000.0,0.000163,2]
[393243740,1762373439544,-5106.26,0.00016354,2]
[393243741,1762373439553,-500.0,0.00016399,2]
[393243742,1762373439563,-500.0,0.00016399,2]
[393243743,1762373439572,-500.0,0.00016399,2]
[393243744,1762373439582,-500.0,0.00016399,2]
[393243745,1762373439591,-500.0,0.00016399,2]
[393243746,1762373439601,-500.0,0.00016399,2]
[393243747,1762373439615,-500.0,0.00016399,2]
[393243748,1762373439625,-295.33139851,0.00016399,2]
[393243749,1762373439636,-150.0,0.00016399,2]
[393243750,1762373439646,-150.0,0.00016399,2]
[393243751,1762373439655,-500.0,0.00016399,2]
[393243752,1762373439664,-150.0,0.00016399,2]
[393243753,1762373439674,-150.0,0.00016399,2]
[393243754,1762373439684,-150.0,0.00016399,2]
[393243755,1762373439693,-150.38503355,0.00016399,2]
[393243756,1762373439702,-150.0,0.00016399,2]
[393243757,1762373439712,-299.75148518,0.00016399,2]
[393243758,1762373439721,-150.0,0.00016399,2]
[393243759,1762373439731,-150.0,0.00016399,2]
[393243760,1762373439740,-150.0,0.00016399,2]
[393243761,1762373439750,-500.0,0.00016399,2]
[393243763,1762373439759,-150.0,0.00016399,2]
[393243765,1762373439768,-500.0,0.00016399,2]
[393243767,1762373439777,-150.0,0.00016399,2]
[393243769,1762373439786,-500.0,0.00016399,2]
[393243771,1762373439795,-150.0,0.00016399,2]
[393243773,1762373439804,-150.0,0.00016399,2]
[393243775,1762373439813,-150.0,0.00016399,2]
[393243777,1762373439822,-150.0,0.00016399,2]
[393243779,1762373439831,-150.0,0.00016399,2]
[393243781,1762373439841,-150.0,0.00016399,2]
[393243783,1762373439850,-500.0,0.00016399,2]
[393243785,1762373439859,-500.0,0.00016399,2]
[393243787,1762373439868,-500.0,0.00016399,2]
[393243789,1762373439877,-533.20404919,0.00016437,2]
[393243790,1762373439886,-1846.49743274,0.00016437,2]
[393243792,1762373439895,-500.0,0.00016438,2]
[393243794,1762373439905,-500.0,0.00016438,2]
[393243797,1762373439915,-500.0,0.00016438,2]
[393243799,1762373439925,-163.3,0.0001644,2]
[393243801,1762373439934,-5270.22581973,0.00016497,2]
[393243803,1762373439943,-150.0,0.00016536,2]
[393243805,1762373439952,-217.3955486,0.00016536,2]
[393243807,1762373439961,-500.0,0.00016536,2]
[393243809,1762373439973,-151.13904288,0.00016536,2]
[393243811,1762373439982,-150.0,0.00016536,2]
[393243813,1762373439995,-150.0,0.00016536,2]
[393243815,1762373440005,-150.0,0.00016536,2]
[393243817,1762373440015,-150.0,0.00016536,2]
[393243819,1762373440026,-500.0,0.00016536,2]
[393243821,1762373440035,-500.0,0.00016536,2]
[393243823,1762373440045,-258.77965988,0.00016536,2]
[393243826,1762373440054,-500.0,0.00016536,2]
[393243828,1762373440063,-150.0,0.00016536,2]
[393243830,1762373440073,-150.0,0.00016536,2]
[393243832,1762373440082,-218.2152435,0.00016536,2]
[393243834,1762373440092,-500.0,0.00016536,2]
[393243836,1762373440102,-500.0,0.00016536,2]
[393243838,1762373440112,-4433.35,0.00016563,2]
[393243840,1762373440122,-316.7,0.00016564,2]
[393243842,1762373440132,-500.0,0.00016575,2]
[393243844,1762373440142,-156.91391956,0.00016583,2]
[393243846,1762373440152,-533.20404919,0.0001662,2]
[393243848,1762373440161,-1846.49743274,0.0001662,2]
[393243850,1762373440171,-151.92422519,0.00016673,2]
[393243853,1762373440181,-450.0,0.00016673,2]
[393243855,1762373440192,-150.0,0.00016673,2]
[393243857,1762373440201,-150.0,0.00016673,2]
[393243859,1762373440210,-200.0,0.00016673,2]
[393243861,1762373440219,-241.19254604,0.00016673,2]
[393243863,1762373440230,-500.0,0.00016673,2]
[393243865,1762373440239,-500.0,0.00016673,2]
[393243866,1762373440249,-500.0,0.00016673,2]
[393243867,1762373440259,-150.0,0.00016673,2]
[393243868,1762373440269,-150.0,0.00016673,2]
[393243869,1762373440278,-500.0,0.00016673,2]
[393243870,1762373440288,-500.0,0.00016673,2]
[393243871,1762373440299,-500.0,0.00016712,2]
[393243872,1762373440309,-1000.0,0.00016713,2]
[393243873,1762373440318,-150.0,0.00016746,2]
[393243874,1762373440328,-533.20404919,0.00016803,2]
[393243875,1762373440338,-1846.49743274,0.00016803,2]
[393243876,1762373440347,-150.0,0.0001681,2]
[393243877,1762373440357,-150.0,0.0001681,2]
[393243878,1762373440370,-500.0,0.0001681,2]
[393243879,1762373440380,-500.0,0.0001681,2]
[393243880,1762373440389,-212.59995806,0.0001681,2]
[393243881,1762373440399,-150.0,0.0001681,2]
[393243882,1762373440408,-181.50662984,0.0001681,2]
[393243883,1762373440418,-500.0,0.0001681,2]
[393243884,1762373440427,-500.0,0.0001681,2]
[393243885,1762373440436,-1000.0,0.00016821,2]
[393243886,1762373440446,-316.7,0.00016838,2]
[393243887,1762373440456,-500.0,0.00016849,2]
[393243888,1762373440465,-156.91391956,0.00016912,2]
[393243889,1762373440474,-200.0,0.00016947,2]
[393243890,1762373440484,-150.0,0.00016947,2]
[393243891,1762373440495,-500.0,0.00016947,2]
[393243892,1762373440504,-500.0,0.00016947,2]
[393243893,1762373440514,-224.96766427,0.00016947,2]
[393243894,1762373440525,-500.0,0.00016947,2]
[393243895,1762373440535,-500.0,0.00016947,2]
[393243896,1762373440544,-150.15,0.0001698,2]
[393243897,1762373440554,-533.20404919,0.00016986,2]
[393243898,1762373440564,-1846.49743274,0.00016986,2]
[393243899,1762373440574,-608.96050936,0.00016986,2]
[393243900,1762373440584,-700.0,0.00017,6]
[393243901,1762373440595,-250.0,0.00017084,2]
[393243902,1762373440607,-500.0,0.00017084,2]
[393243903,1762373440619,-500.0,0.00017084,2]
[393243904,1762373440632,-450.0,0.00017084,2]
[393243905,1762373440641,-500.0,0.00017084,2]
[393243906,1762373440652,-993.21908226,0.00017088,2]
[393243907,1762373440661,-500.0,0.00017099,2]
[393243908,1762373440671,-500.0,0.00017099,2]
[393243909,1762373440682,-500.0,0.00017099,2]
[393243910,1762373440692,-500.0,0.00017099,2]
[393243911,1762373440701,-500.0,0.00017099,2]
[393243912,1762373440710,-500.0,0.00017099,2]
[393243913,1762373440719,-500.0,0.00017099,2]
[393243914,1762373440729,-500.0,0.00017099,2]
[393243915,1762373440738,-500.0,0.00017099,2]
[393243916,1762373440748,-500.0,0.00017099,2]
[393243917,1762373440757,-500.0,0.00017099,2]
[393243918,1762373440767,-277.35679052,0.00017099,2]
[393243919,1762373440776,-1400.0,0.000171,6]
[393243920,1762373440785,-316.7,0.00017112,2]
[393243921,1762373440795,-549.09,0.0001712,2]
[393243922,1762373440804,-549.09,0.0001712,2]
[393243923,1762373440813,-549.09,0.0001712,2]
[393243924,1762373440822,-533.20404919,0.00017168,2]
[393243925,1762373440831,-1846.49743274,0.00017168,2]
[393243926,1762373440841,-2100.0,0.000172,6]
[393243927,1762373440851,-500.0,0.00017205,2]
[393243928,1762373440860,-261.0,0.00017221,2]
[393243929,1762373440870,-500.0,0.00017221,2]
[393243930,1762373440879,-500.0,0.00017221,2]
[393243931,1762373440889,-156.91391956,0.00017242,2]
[393243932,1762373440899,-2072.0,0.0001725,2]
[393243933,1762373440908,-2072.0,0.00017256,2]
[393243934,1762373440917,-2800.0,0.000173,6]
[393243935,1762373440927,-1188.0,0.0001732,2]
[393243936,1762373440936,-905.0,0.0001732,2]
[393243937,1762373440946,-209.05525812,0.00017336,2]
[393243938,1762373440955,-150.0,0.00017336,2]
[393243939,1762373440964,-150.0,0.00017336,2]
[393243940,1762373440974,-150.0,0.00017336,2]
[393243941,1762373440984,-150.0,0.00017336,2]
[393243942,1762373440993,-150.0,0.00017336,2]
[393243943,1762373441003,-533.20404919,0.00017351,2]
[393243944,1762373441012,-500.0,0.00017358,2]
[393243945,1762373441023,-500.0,0.00017358,2]
[393243946,1762373441033,-2719.0,0.00017361,2]
[393243947,1762373441043,-2141.0,0.00017361,2]
[393243948,1762373441053,-6473.0,0.00017361,2]
[393243949,1762373441063,-5886.474,0.00017361,2]
[393243950,1762373441072,-559.0,0.00017361,2]
[393243951,1762373441081,-524.46659852,0.00017368,2]
[393243952,1762373441091,-316.71228413,0.00017386,2]
[393243953,1762373441100,-3600.0,0.000174,6]
[393243954,1762373441109,-2072.0,0.00017445,2]
[393243955,1762373441119,-150.0,0.00017473,2]
[393243956,1762373441129,-150.0,0.00017473,2]
[393243957,1762373441138,-158.86102011,0.00017473,2]
[393243958,1762373441147,-150.0,0.00017473,2]
[393243959,1762373441156,-500.0,0.00017495,2]
[393243960,1762373441166,-190.50608865,0.00017495,2]
[393243961,1762373441175,-700.0,0.000175,6]
[393243962,1762373441185,-500.0,0.00017508,2]
[393243963,1762373441194,-259.0,0.00017509,2]
[393243964,1762373441203,-250.0,0.00017509,2]
[393243965,1762373441212,-206.106,0.00017509,2]
[393243966,1762373441222,-250.0,0.00017509,2]
[393243967,1762373441232,-215.691,0.00017509,2]
[393243968,1762373441241,-152.461,0.00017509,2]
[393243969,1762373441250,-250.0,0.00017509,2]
[393243970,1762373441260,-261.388,0.00017509,2]
[393243971,1762373441269,-188.836,0.00017509,2]
[393243972,1762373441279,-162.063,0.00017509,2]
[393243973,1762373441289,-209.805,0.00017509,2]
[393243974,1762373441298,-250.0,0.00017509,2]
[393243975,1762373441308,-220.533,0.00017509,2]
[393243976,1762373441318,-607.0,0.00017509,2]
[393243977,1762373441328,-3422.0,0.00017509,2]
[393243978,1762373441338,-819.0,0.00017509,2]
[393243979,1762373441347,-1595.0,0.00017509,2]
[393243980,1762373441356,-1272.0,0.00017509,2]
[393243981,1762373441366,-812.0,0.00017509,2]
[393243982,1762373441375,-533.20404919,0.00017534,2]
[393243983,1762373441385,-893.58488772,0.00017549,2]
[393243984,1762373441394,-156.91391956,0.00017571,2]
[393243985,1762373441404,-5000.0,0.00017598,2]
[393243986,1762373441413,-700.0,0.000176,6]
[393243987,1762373441422,-150.0,0.0001761,2]
[393243988,1762373441432,-150.0,0.0001761,2]
[393243989,1762373441441,-500.0,0.00017632,2]
[393243990,1762373441451,-224.94313354,0.0001764,2]
[393243991,1762373441460,-549.09,0.00017661,2]
[393243992,1762373441470,-500.0,0.00017698,2]
[393243993,1762373441479,-700.0,0.000177,6]
[393243994,1762373441489,-268.63021333,0.00017701,2]
[393243995,1762373441498,-2072.0,0.00017714,2]
[393243996,1762373441508,-211.0,0.00017714,2]
[393243997,1762373441517,-2072.0,0.00017715,2]
[393243998,1762373441527,-533.20404919,0.00017717,2]
[393243999,1762373441536,-1425.0,0.00017736,2]
[393244000,1762373441546,-221.75791629,0.00017746,2]
[393244001,1762373441555,-150.0,0.00017747,2]
[393244002,1762373441565,-1425.0,0.0001775,2]
[393244003,1762373441574,-704.21852697,0.00017752,2]
[393244004,1762373441584,-211.91310693,0.00017757,2]
[393244005,1762373441594,-211.0,0.00017758,2]
[393244006,1762373441607,-261.570834,0.00017759,3]
[393244007,1762373441618,-550.929805,0.00017759,3]
[393244008,1762373441628,-189.337306,0.00017759,3]
[393244009,1762373441637,-702.872583,0.00017759,3]
[393244010,1762373441647,-420.0,0.00017764,2]
[393244011,1762373441658,-500.0,0.00017769,2]
[393244012,1762373441667,-1425.0,0.00017776,2]
[393244013,1762373441677,-1425.0,0.00017776,2]
[393244014,1762373441692,-4021.719,0.00017788,2]
[393244015,1762373441702,-215.612,0.00017788,2]
[393244016,1762373441712,-1815.0,0.000178,2]
[393244017,1762373441723,-700.0,0.000178,6]
[393244018,1762373441733,-1000.0,0.00017806,2]
[393244019,1762373441743,-500.0,0.00017808,2]
[393244020,1762373441752,-190.16,0.00017808,2]
[393244021,1762373441762,-162.50988356,0.00017812,2]
[393244022,1762373441771,-150.0,0.0001782,2]
[393244023,1762373441781,-150.0,0.0001782,2]
[393244024,1762373441790,-168.061,0.0001782,2]
[393244025,1762373441800,-150.0,0.0001782,2]
[393244026,1762373441810,-150.0,0.0001782,2]
[393244027,1762373441820,-150.0,0.0001782,2]
[393244028,1762373441831,-1425.0,0.0001782,2]
[393244029,1762373441840,-300.0,0.0001782,2]
[393244030,1762373441849,-2500.0,0.0001782,2]
[393244031,1762373441859,-300.0,0.0001782,2]
[393244032,1762373441868,-300.0,0.0001782,2]
[393244033,1762373441877,-300.0,0.0001782,2]
[393244034,1762373441887,-195.0,0.0001782,2]
[393244035,1762373441897,-197.09164834,0.0001782,2]
[393244036,1762373441906,-250.0,0.0001782,2]
[393244037,1762373441916,-250.0,0.0001782,2]
[393244038,1762373441926,-300.0,0.0001782,2]
[393244039,1762373441936,-300.0,0.0001782,2]
[393244040,1762373441945,-195.0,0.0001782,2]
[393244041,1762373441955,-195.0,0.0001782,2]
[393244042,1762373441964,-2072.0,0.00017827,2]
[393244043,1762373441974,-500.0,0.00017829,2]
[393244044,1762373441984,-70145.5212233,0.0001783,2]
[393244045,1762373441993,-2500.0,0.00017838,3]
[393244046,1762373442002,-2500.0,0.00017847,3]
[393244047,1762373442012,-1680.0,0.00017852,2]
[393244048,1762373442022,-500.0,0.00017855,2]
[393244049,1762373442031,-200.0,0.00017855,2]
[393244050,1762373442041,-500.0,0.00017856,2]
[393244051,1762373442051,-500.0,0.00017856,2]
[393244052,1762373442060,-200.0,0.00017856,2]
[393244053,1762373442069,-200.0,0.00017856,2]
[393244054,1762373442078,-2500.0,0.00017856,3]
[393244055,1762373442087,-150.0,0.00017862,2]
[393244056,1762373442097,-2072.0,0.00017862,2]
[393244057,1762373442107,-2500.0,0.00017865,3]
[393244058,1762373442117,-2500.0,0.00017865,3]
[393244059,1762373442126,-2500.0,0.00017874,3]
[393244064,1762373442302,-2500.0,0.00017874,3]
[393244067,1762373442321,-2500.0,0.00017882,3]
[393244068,1762373442331,-2500.0,0.00017882,3]
[393244069,1762373442340,-241.58927028,0.00017884,2]
[393244070,1762373442350,-169.85165307,0.0001789,2]
[393244071,1762373442360,-2500.0,0.00017891,3]
[393244072,1762373442370,-2500.0,0.00017891,3]
[393244073,1762373442379,-2500.0,0.000179,3]
[393244074,1762373442389,-2041.18348922,0.000179,2]
[393244075,1762373442399,-239.56426196,0.000179,2]
[393244076,1762373442409,-1000.0,0.000179,2]
[393244077,1762373442419,-1063.0,0.000179,6]
[393244078,1762373442428,-156.91391956,0.000179,2]
[393244079,1762373442438,-2500.0,0.000179,3]
[393244080,1762373442447,-428.89678196,0.000179,2]
[393244081,1762373442456,-7033.78175427,0.000179,2]
[393244082,1762373442466,-812.65011104,0.000179,3]
[393244083,1762373442475,-533.20404919,0.000179,2]
[393244084,1762373442485,-3472.93082934,0.000179,2]
[393244085,1762373442494,-211.0,0.00017905,2]
[393244086,1762373442503,-500.0,0.00017906,2]
[393244087,1762373442513,-192.59474214,0.00017906,2]
[393244088,1762373442523,-1000.0,0.00017929,2]
[393244089,1762373442532,-553.24,0.00017942,2]
[393244090,1762373442541,-549.09,0.00017942,2]
[393244091,1762373442551,-549.09,0.00017942,2]
[393244092,1762373442560,-549.09,0.00017942,2]
[393244093,1762373442569,-549.09,0.00017942,2]
[393244094,1762373442578,-1098.18,0.00017942,2]
[393244095,1762373442587,-699.82067501,0.0001797,2]
[393244096,1762373442597,-866.0,0.00017973,2]
[393244097,1762373442611,-177.0,0.00017973,2]
[393244098,1762373442620,-440.46876719,0.00017973,2]
[393244099,1762373442629,-500.0,0.00017973,2]
[393244100,1762373442638,-500.0,0.00017973,2]
[393244101,1762373442647,-500.0,0.00017973,2]
[393244102,1762373442657,-513.5397751,0.00017973,2]
[393244103,1762373442666,-481.20917835,0.00017973,2]
[393244104,1762373442675,-500.0,0.00017973,2]
[393244105,1762373442687,-500.0,0.00017973,2]
[393244106,1762373442696,-500.0,0.00017973,2]
[393244107,1762373442705,-500.44686822,0.00017973,2]
[393244108,1762373442714,-500.0,0.00017973,2]
[393244109,1762373442724,-500.0,0.00017973,2]
[393244110,1762373442733,-500.0,0.00017973,2]
[393244111,1762373442742,-500.0,0.00017973,2]
[393244112,1762373442752,-500.0,0.00017973,2]
[393244113,1762373442761,-500.0,0.00017973,2]
[393244114,1762373442771,-500.0,0.00017973,2]
[393244115,1762373442780,-500.0,0.00017973,2]
[393244116,1762373442789,-500.0,0.00017973,2]
[393244117,1762373442799,-150.0,0.00017973,2]
[393244118,1762373442808,-419.28,0.00017983,2]
[393244119,1762373442817,-500.0,0.00017989,2]
[393244120,1762373442827,-4015.0,0.0001799,2]
[393244121,1762373442836,-231.10255349,0.0001799,2]
[393244122,1762373442845,-231.10255349,0.0001799,2]
[393244123,1762373442855,-231.10255349,0.0001799,2]
[393244124,1762373442865,-163.3,0.0001799,2]
[393244125,1762373442874,-163.3,0.0001799,2]
[393244126,1762373442883,-163.3,0.0001799,2]
[393244127,1762373442893,-549.09,0.0001799,2]
[393244128,1762373442903,-655.08,0.0001799,2]
[393244129,1762373442912,-549.09,0.0001799,2]
[393244130,1762373442922,-506.72,0.00017992,2]
[393244132,1762373442932,-1425.0,0.00017995,2]
[393244133,1762373442941,-500.0,0.00017997,2]
[393244134,1762373442950,-14019.5417657,0.00017997,2]
[393244135,1762373442960,-151.0,0.00017997,2]
[393244136,1762373442969,-150.0,0.00017998,2]
[393244137,1762373442978,-182.14042067,0.00017999,5]
[393244138,1762373442988,-1040.9103192,0.00017999,5]
[393244139,1762373442997,-1040.9103192,0.00017999,5]
[393244140,1762373443007,-1040.9103192,0.00017999,5]
[393244141,1762373443017,-1040.91031921,0.00017999,5]
[393244142,1762373443027,-500.0,0.00017999,2]
[393244143,1762373443036,-500.0,0.00017999,2]
[393244144,1762373443046,-500.0,0.00017999,2]
[393244145,1762373443056,-500.0,0.00017999,2]
[393244146,1762373443065,-500.0,0.00017999,2]
[393244147,1762373443074,-500.0,0.00017999,2]
[393244148,1762373443083,-500.0,0.00017999,2]
[393244149,1762373443092,-500.0,0.00017999,2]
[393244150,1762373443101,-500.0,0.00017999,2]
[393244151,1762373443110,-500.0,0.00017999,2]
[393244152,1762373443119,-500.0,0.00017999,2]
[393244153,1762373443129,-500.0,0.00017999,2]
[393244154,1762373443137,-500.0,0.00017999,2]
[393244155,1762373443147,-500.0,0.00017999,2]
[393244156,1762373443156,-500.0,0.00017999,2]
[393244157,1762373443165,-500.0,0.00017999,2]
[393244158,1762373443174,-500.0,0.00017999,2]
[393244159,1762373443183,-500.0,0.00017999,2]
[393244160,1762373443192,-500.0,0.00017999,2]
[393244161,1762373443201,-504.86564533,0.00017999,2]
[393244162,1762373443211,-300.0,0.00017999,2]
[393244163,1762373443220,-300.0,0.00017999,2]
[393244164,1762373443229,-300.0,0.00017999,2]
[393244165,1762373443238,-666.0,0.00017999,2]
[393244166,1762373443247,-300.0,0.00017999,2]
[393244167,1762373443257,-500.0,0.00017999,2]
[393244168,1762373443266,-500.0,0.00017999,2]
[393244169,1762373443275,-500.0,0.00017999,2]
[393244170,1762373443284,-500.0,0.00017999,2]
[393244171,1762373443292,-500.0,0.00017999,2]
[393244172,1762373443300,-500.0,0.00017999,2]
[393244173,1762373443309,-500.0,0.00017999,2]
[393244174,1762373443318,-500.0,0.00017999,2]
[393244175,1762373443327,-388.50086275,0.00017999,2]
[393244176,1762373443337,-666.0,0.00017999,2]
[393244177,1762373443346,-109793.8391912,0.00018,2]
[393244178,1762373443355,-151.0,0.00018,2]
[393244179,1762373443364,-151.000001,0.00018,2]
[393244180,1762373443374,-160.0,0.00018,5]
[393244181,1762373443383,-1141307.12107451,0.00018,2]
[393244182,1762373443715,-3596.84769652,0.00018,2]
[393244337,1762373511513,500.0,0.00016289,2]
[393244338,1762373511558,427.24264921,0.00016289,2]
[393244339,1762373538239,862.5442,0.000162,2]
[393244340,1762373563516,878.22315079,0.000162,2]
[393244341,1762373563539,10000.01,0.000162,2]
[393244342,1762373563562,10000.01,0.000162,2]
[393244343,1762373563583,10000.01,0.000162,2]
[393244344,1762373701662,335.3199,0.00016099,2]
[393244345,1762373745743,-407.94022444,0.00016199,2]
[393244346,1762373745765,-592.05977556,0.00016199,2]
[393244347,1762373756214,166.66,0.00015799,2]
[393244348,1762373756426,166.66,0.00016131,2]
[393244349,1762373761155,-607.94022444,0.00016199,2]
[393244350,1762373771991,392.05977556,0.000161,2]
[393244351,1762373772762,-253.17005046,0.000161,2]